bitfinex/quotes_SOLUSD_20260102
["timestamp","ask_amount","ask_price","bid_price","bid_amount"]
[1767325978817,2.03959589,127.64,127.59,2.23959589]
[1767325979005,2.69315856,127.63,127.59,0.85302294]
[1767325979315,2.69315856,127.64,127.6,0.65302294]
[1767325980695,0.65356267,127.64,127.6,0.65302294]
[1767325980898,2.69315856,127.64,127.6,0.65302294]
[1767325981498,2.69315856,127.63,127.59,0.85302294]
[1767325981704,2.03959589,127.62,127.6,0.65302294]
[1767325981917,2.69315856,127.64,127.6,0.65302294]
[1767325982993,0.65356267,127.64,127.6,0.65302294]
[1767325983220,0.65356267,127.64,127.61,0.65302294]
[1767325983400,2.03959589,127.63,127.6,0.65302294]
[1767325983803,2.69315856,127.63,127.6,0.65302294]
[1767325984400,2.69315856,127.63,127.59,0.85302294]
[1767325986426,2.03959589,127.64,127.6,0.65302294]
[1767325986719,2.69315856,127.65,127.6,2.03959589]
[1767325986924,2.03959589,127.65,127.61,0.65302294]
[1767325987313,2.03959589,127.64,127.61,0.65302294]
[1767325987917,0.65356267,127.65,127.61,0.65302294]
[1767325988112,2.03959589,127.64,127.61,0.65302294]
[1767325988909,2.69315856,127.64,127.61,0.65302294]
[1767325990126,2.03959589,127.65,127.61,0.65302294]
[1767325990425,2.69315856,127.65,127.61,0.65302294]
[1767325991127,2.03959589,127.66,127.62,2.03959589]
[1767325991332,2.03959589,127.67,127.63,0.65302294]
[1767325991628,2.03959589,127.65,127.62,0.65302294]
[1767325991800,2.69315856,127.65,127.62,0.65302294]
[1767325994212,2.03959589,127.64,127.61,61.2]
[1767325994425,2.69315856,127.64,127.61,0.65302294]
[1767325995003,2.03959589,127.64,127.61,0.65302294]
[1767325995232,2.69315856,127.65,127.61,0.65302294]
[1767325998511,0.65356267,127.65,127.61,0.65302294]
[1767325999733,2.69315856,127.65,127.61,0.65302294]
[1767326001034,0.65356267,127.67,127.62,0.65302294]
[1767326001217,2.03959589,127.66,127.62,0.65302294]
[1767326001532,2.69315856,127.66,127.62,0.65302294]
[1767326001829,2.03959589,127.67,127.62,2.03959589]
[1767326002036,2.69315856,127.68,127.64,0.65302294]
[1767326002330,2.69315856,127.67,127.64,0.65302294]
[1767326006136,0.65356267,127.67,127.64,0.65302294]
[1767326006328,2.69315856,127.67,127.64,0.65302294]
[1767326007222,0.65356267,127.67,127.64,0.65302294]
[1767326007531,2.69315856,127.67,127.64,0.65302294]
[1767326008358,2.03959589,127.68,127.64,0.65302294]
[1767326008536,2.03959589,127.67,127.64,0.65302294]
[1767326010423,2.7253796,127.67,127.64,0.65302294]
[1767326011740,0.68578371,127.67,127.64,0.65302294]
[1767326013937,22.15147257,127.69,127.64,2.03959589]
[1767326014239,2.03959589,127.68,127.65,0.67001326]
[1767326014536,2.7253796,127.68,127.65,0.67001326]
[1767326014918,2.7253796,127.68,127.63,14.32]
[1767326014919,2.7253796,127.67,127.64,0.67001326]
[1767326015114,0.68578371,127.67,127.64,0.67001326]
[1767326026636,0.68578371,127.68,127.65,0.67001326]
[1767326027031,3.8717874,127.68,127.65,0.67001326]
[1767326027453,0.68578371,127.68,127.65,0.67001326]
[1767326028135,7.83107988,127.7,127.65,0.67001326]
[1767326028450,0.68578371,127.7,127.67,0.67001326]
[1767326029459,8.51678421,127.7,127.67,0.67001326]
[1767326029636,0.68578371,127.69,127.65,18.15601695]
[1767326029837,3.18600369,127.69,127.65,0.67001326]
[1767326030052,0.68578371,127.68,127.65,0.67001326]
[1767326040756,3.84879496,127.7,127.66,0.72449962]
[1767326040957,0.66279127,127.7,127.66,3.18600369]
[1767326041260,0.66279127,127.7,127.67,0.72449962]
[1767326041760,3.84879496,127.7,127.67,0.72449962]
[1767326042662,0.66279127,127.7,127.67,0.72449962]
[1767326044854,0.66279127,127.71,127.67,3.18600369]
[1767326045060,0.66279127,127.71,127.68,0.72449962]
[1767326045635,3.18600369,127.73,127.68,3.18600369]
[1767326045841,0.66279127,127.73,127.69,0.72449962]
[1767326046055,3.84879496,127.73,127.69,0.72449962]
[1767326046638,0.66279127,127.73,127.69,0.72449962]
[1767326046835,0.66279127,127.73,127.7,0.72449962]
[1767326048769,3.84879496,127.73,127.7,0.72449962]
[1767326049870,0.66279127,127.75,127.72,0.72449962]
[1767326050364,3.84879496,127.75,127.72,0.72449962]
[1767326051157,0.66279127,127.74,127.7,3.18600369]
[1767326051463,0.66279127,127.74,127.71,0.72449962]
[1767326052767,3.84879496,127.75,127.71,0.72449962]
[1767326054146,3.84879496,127.73,127.69,0.72449962]
[1767326055072,3.60879496,127.73,127.68,64.38600369]
[1767326055364,3.60879496,127.73,127.69,0.72449962]
[1767326057476,3.18600369,127.72,127.69,0.72449962]
[1767326057667,3.84879496,127.72,127.69,0.72449962]
[1767326059069,3.84879496,127.73,127.69,0.72449962]
[1767326059448,3.18600369,127.73,127.69,0.72449962]
[1767326059746,3.84879496,127.73,127.69,0.72449962]
[1767326059943,0.66279127,127.73,127.69,0.72449962]
[1767326060146,3.84879496,127.73,127.69,0.72449962]
[1767326063365,3.18600369,127.73,127.69,0.72449962]
[1767326063561,3.84616361,127.71,127.67,0.68139989]
[1767326065373,3.18600369,127.71,127.67,0.68139989]
[1767326065592,9.03531432,127.76,127.7,3.18600369]
[1767326065777,0.78517595,127.78,127.74,0.69441555]
[1767326066098,0.1,127.78,127.74,3.18600369]
[1767326066383,0.1,127.78,127.74,14.3]
[1767326066563,0.78517595,127.78,127.74,17.48600369]
[1767326066771,0.1,127.78,127.76,3.18600369]
[1767326067079,0.1,127.8,127.76,3.18600369]
[1767326067865,0.78517595,127.8,127.77,0.69441555]
[1767326070183,0.78517595,127.8,127.77,3.88041924]
[1767326070563,0.78517595,127.8,127.77,0.69441555]
[1767326070766,0.78517595,127.8,127.76,3.18600369]
[1767326071082,0.78517595,127.8,127.77,0.69441555]
[1767326072973,3.97117964,127.8,127.77,0.69441555]
[1767326074089,0.78517595,127.8,127.77,0.69441555]
[1767326074287,3.97117964,127.8,127.77,0.69441555]
[1767326074782,0.1,127.8,127.77,0.69441555]
[1767326076472,0.1,127.8,127.78,0.69441555]
[1767326076893,0.1,127.8,127.78,0.66497006]
[1767326077694,0.1,127.8,127.78,0.63475175]
[1767326078495,0.68517595,127.79,127.76,3.18600369]
[1767326078793,0.1,127.8,127.77,3.18600369]
[1767326079175,0.1,127.8,127.75,14.3]
[1767326079495,0.78517595,127.8,127.76,3.18600369]
[1767326079666,0.78517595,127.8,127.77,0.69441555]
[1767326081698,0.1,127.8,127.77,0.69441555]
[1767326081983,0.78517595,127.8,127.77,0.69441555]
[1767326083285,0.68517595,127.8,127.77,0.69441555]
[1767326083874,3.87117964,127.8,127.77,0.69441555]
[1767326084486,2.72045719,127.8,127.77,0.69441555]
[1767326085168,0.68517595,127.8,127.77,0.69441555]
[1767326091070,2.13528124,127.81,127.75,0.69441555]
[1767326091071,2.03528124,127.78,127.75,0.69441555]
[1767326091274,2.03528124,127.77,127.71,0.69441555]
[1767326091504,2.03528124,127.77,127.73,0.69441555]
[1767326091505,0.68517595,127.76,127.73,0.69441555]
[1767326091678,2.72045719,127.76,127.73,0.69441555]
[1767326092207,2.72045719,127.76,127.72,0.69441555]
[1767326092704,2.72045719,127.77,127.72,0.69441555]
[1767326092878,0.68517595,127.77,127.74,0.69441555]
[1767326093082,2.72045719,127.78,127.75,0.69441555]
[1767326094510,0.71480261,127.77,127.73,0.67135533]
[1767326094806,0.71480261,127.77,127.74,0.67135533]
[1767326097086,2.03528124,127.77,127.73,0.67135533]
[1767326097287,0.71480261,127.77,127.73,0.67135533]
[1767326097497,2.75008385,127.77,127.73,0.67135533]
[1767326098185,2.75008385,127.77,127.73,2.03528124]
[1767326098386,2.75008385,127.77,127.74,0.67135533]
[1767326100409,0.71480261,127.77,127.74,0.67135533]
[1767326100800,0.71480261,127.79,127.75,0.67135533]
[1767326100985,2.75008385,127.79,127.75,0.67135533]
[1767326101179,2.03528124,127.79,127.75,0.67135533]
[1767326101383,0.71480261,127.78,127.75,0.67135533]
[1767326106800,22.93911947,127.81,127.75,2.03528124]
[1767326106991,8.63911947,127.81,127.77,0.67135533]
[1767326107197,10.67440071,127.81,127.77,0.67135533]
[1767326107391,0.71480261,127.79,127.74,0.67135533]
[1767326107599,0.71480261,127.77,127.74,17.00663657]
[1767326107810,0.71480261,127.77,127.74,0.67135533]
[1767326108211,0.71480261,127.8,127.76,0.67135533]
[1767326108391,0.71480261,127.79,127.76,0.67135533]
[1767326108889,0.68480261,127.79,127.76,0.67135533]
[1767326109086,0.1,127.81,127.76,2.03528124]
[1767326109290,2.13528124,127.81,127.77,0.67135533]
[1767326109512,9.95942208,127.81,127.77,0.67135533]
[1767326109891,9.95942208,127.81,127.77,2.70663657]
[1767326110109,0.71480261,127.8,127.74,13.50663657]
[1767326110319,0.71480261,127.79,127.76,2.03528124]
[1767326111715,0.68480261,127.79,127.76,2.70663657]
[1767326112722,0.68480261,127.79,127.76,0.67135533]
[1767326113022,0.68480261,127.79,127.76,2.70663657]
[1767326116231,0.71480261,127.78,127.75,0.67135533]
[1767326116726,0.71480261,127.78,127.75,2.70663657]
[1767326117104,0.71480261,127.8,127.77,0.67135533]
[1767326119129,0.71480261,127.8,127.76,2.70663657]
[1767326119329,0.71480261,127.8,127.77,0.67135533]
[1767326121308,2.03528124,127.8,127.76,0.67135533]
[1767326121507,0.71480261,127.79,127.75,2.70663657]
[1767326121706,0.71480261,127.79,127.75,2.03528124]
[1767326121929,0.71480261,127.79,127.76,0.67135533]
[1767326123632,0.71480261,127.79,127.75,2.03528124]
[1767326123843,0.72105595,127.77,127.74,61.88716299]
[1767326124028,0.72105595,127.77,127.74,0.68716299]
[1767326124410,0.7114326,127.76,127.73,0.65290776]
[1767326128828,0.7114326,127.74,127.71,0.65290776]
[1767326129841,9.86246276,127.76,127.71,2.03528124]
[1767326130038,0.7114326,127.75,127.72,0.65290776]
[1767326131531,0.7114326,127.76,127.73,0.65290776]
[1767326133127,2.03528124,127.76,127.7,61.2]
[1767326133318,2.03528124,127.76,127.69,14.3]
[1767326133319,0.7114326,127.72,127.69,0.65290776]
[1767326133744,2.74671384,127.73,127.69,0.65290776]
[1767326135125,0.7114326,127.73,127.69,0.65290776]
[1767326135340,2.74671384,127.73,127.69,0.65290776]
[1767326136124,2.03528124,127.73,127.69,0.65290776]
[1767326136320,2.03528124,127.72,127.69,0.65290776]
[1767326136531,2.74671384,127.72,127.69,0.65290776]
[1767326136953,0.7114326,127.72,127.69,0.65290776]
[1767326138735,7.82922545,127.73,127.67,14.3]
[1767326138947,2.74671384,127.71,127.67,0.65290776]
[1767326139148,2.74671384,127.71,127.67,2.688189]
[1767326139451,2.74671384,127.71,127.67,0.65290776]
[1767326142043,2.74671384,127.7,127.67,0.65290776]
[1767326143052,2.03528124,127.7,127.64,0.2]
[1767326143332,2.74671384,127.68,127.65,0.65290776]
[1767326143731,0.7114326,127.67,127.64,0.2]
[1767326143930,2.74671384,127.66,127.64,0.2]
[1767326144158,0.7114326,127.65,127.64,0.2]
[1767326144530,2.03528124,127.66,127.64,0.2]
[1767326144729,0.7114326,127.67,127.64,0.2]
[1767326144962,2.74671384,127.67,127.64,0.85290776]
[1767326146153,2.74671384,127.65,127.62,0.2]
[1767326146553,3.89882921,127.65,127.62,0.2]
[1767326148665,0.7114326,127.69,127.65,0.65290776]
[1767326148838,3.89882921,127.68,127.64,0.65290776]
[1767326149747,0.7114326,127.68,127.64,3.84030437]
[1767326152761,3.89882921,127.68,127.64,0.65290776]
[1767326154962,3.87426871,127.69,127.65,0.65903299]
[1767326155552,0.6868721,127.69,127.65,0.65903299]
[1767326155758,3.87426871,127.69,127.65,0.65903299]
[1767326156258,0.6868721,127.68,127.65,0.65903299]
[1767326157848,0.6868721,127.71,127.66,0.65903299]
[1767326158046,3.87426871,127.71,127.66,3.18739661]
[1767326158254,0.6868721,127.7,127.67,0.65903299]
[1767326159264,3.87426871,127.7,127.67,0.65903299]
[1767326159967,3.18739661,127.7,127.67,0.65903299]
[1767326160652,3.87426871,127.71,127.67,0.65903299]
[1767326161163,0.6868721,127.71,127.67,0.65903299]
[1767326161462,3.18739661,127.72,127.68,0.65903299]
[1767326161641,3.87426871,127.72,127.68,0.65903299]
[1767326162438,3.18739661,127.72,127.68,0.65903299]
[1767326162645,3.87426871,127.73,127.69,0.65903299]
[1767326163163,3.18739661,127.74,127.7,0.65903299]
[1767326163476,3.87426871,127.74,127.7,0.65903299]
[1767326163649,0.6868721,127.74,127.7,0.65903299]
[1767326163850,3.87426871,127.74,127.7,0.65903299]
[1767326165467,0.6868721,127.74,127.7,0.65903299]
[1767326165858,0.6868721,127.75,127.71,3.8464296]
[1767326166059,0.6868721,127.75,127.72,0.65903299]
[1767326166266,3.87426871,127.76,127.72,0.65903299]
[1767326166564,0.6868721,127.76,127.72,0.65903299]
[1767326167662,3.87426871,127.76,127.72,0.65903299]
[1767326181279,0.6868721,127.75,127.72,0.65903299]
[1767326181783,0.6868721,127.77,127.73,0.65903299]
[1767326181960,0.6868721,127.76,127.73,0.65903299]
[1767326185391,0.69654363,127.75,127.72,0.67482456]
[1767326187592,3.18739661,127.76,127.71,61.2]
[1767326187593,7.82721066,127.76,127.71,61.2]
[1767326187780,0.69654363,127.73,127.71,61.2]
[1767326188072,0.69654363,127.73,127.69,79.36222117]
[1767326188589,3.88394024,127.73,127.69,76.17482456]
[1767326189167,0.69654363,127.72,127.69,76.17482456]
[1767326189472,0.69654363,127.72,127.69,0.67482456]
[1767326190069,3.18739661,127.7,127.68,61.2]
[1767326190277,0.69654363,127.7,127.67,0.67482456]
[1767326191891,0.69654363,127.7,127.64,0.67482456]
[1767326191892,0.69654363,127.67,127.64,0.67482456]
[1767326192200,3.88394024,127.67,127.64,0.67482456]
[1767326193094,3.18739661,127.67,127.64,0.67482456]
[1767326194002,3.18739661,127.66,127.63,0.67482456]
[1767326198901,3.88394024,127.67,127.63,0.67482456]
[1767326199377,3.88394024,127.66,127.63,0.67482456]
[1767326199895,3.88394024,127.65,127.62,62.07482456]
[1767326200599,3.18739661,127.64,127.62,61.4]
[1767326200777,3.88394024,127.64,127.62,0.2]
[1767326200979,3.18739661,127.64,127.62,0.2]
[1767326201187,22.76868653,127.68,127.6,0.2]
[1767326201188,0.69654363,127.62,127.6,0.2]
[1767326201482,0.69654363,127.62,127.59,0.87482456]
[1767326201483,3.88394024,127.61,127.59,0.2]
[1767326201684,3.18739661,127.6,127.59,0.2]
[1767326202175,3.18739661,127.61,127.59,0.2]
[1767326202808,3.18739661,127.6,127.55,14.5]
[1767326202991,11.02337544,127.62,127.56,0.67482456]
[1767326203321,3.18739661,127.59,127.56,0.67482456]
[1767326203612,11.02337544,127.62,127.55,14.5]
[1767326203613,1.10693783,127.57,127.55,0.87482456]
[1767326204923,3.18739661,127.58,127.56,0.67482456]
[1767326205212,3.18739661,127.59,127.56,0.67482456]
[1767326205383,0.58998738,127.6,127.56,0.67482456]
[1767326205586,3.18739661,127.57,127.55,0.2]
[1767326206305,3.88394024,127.58,127.55,0.2]
[1767326207108,3.18739661,127.56,127.55,0.2]
[1767326207310,0.69654363,127.57,127.55,0.2]
[1767326207311,3.88394024,127.57,127.55,0.2]
[1767326207906,0.69654363,127.57,127.55,0.2]
[1767326208090,3.88394024,127.57,127.55,0.2]
[1767326208292,0.69654363,127.6,127.56,0.67482456]
[1767326208493,2.04202045,127.58,127.56,0.67482456]
[1767326209310,7.83648433,127.61,127.56,0.67482456]
[1767326209311,2.04202045,127.6,127.56,0.67482456]
[1767326209511,2.73856408,127.6,127.56,0.67482456]
[1767326209807,2.04202045,127.59,127.56,0.67482456]
[1767326210016,0.69654363,127.59,127.56,0.67482456]
[1767326210191,2.04202045,127.58,127.56,0.67482456]
[1767326210392,2.73856408,127.59,127.56,0.67482456]
[1767326211601,0.69654363,127.59,127.56,0.67482456]
[1767326211806,2.73856408,127.59,127.56,0.67482456]
[1767326212405,2.04202045,127.61,127.57,0.67482456]
[1767326212591,0.69654363,127.64,127.58,0.67482456]
[1767326212791,2.73856408,127.63,127.59,0.67482456]
[1767326213007,0.69654363,127.63,127.59,0.67482456]
[1767326213189,2.73856408,127.63,127.59,0.67482456]
[1767326214693,0.69654363,127.63,127.59,0.67482456]
[1767326214993,2.73856408,127.63,127.59,0.67482456]
[1767326215410,0.69654363,127.63,127.59,0.67482456]
[1767326215815,2.73856408,127.63,127.59,0.67482456]
[1767326216313,2.04202045,127.63,127.59,0.67482456]
[1767326216498,2.04202045,127.63,127.57,22.15865879]
[1767326216499,0.69856785,127.61,127.58,0.71348891]
[1767326216813,2.7405883,127.61,127.58,61.91348891]
[1767326217314,2.04202045,127.61,127.58,61.91348891]
[1767326218921,0.69856785,127.62,127.58,61.91348891]
[1767326218922,0.69856785,127.62,127.59,0.71348891]
[1767326219116,2.7405883,127.62,127.59,0.71348891]
[1767326219293,0.69856785,127.64,127.6,0.71348891]
[1767326219500,2.7405883,127.64,127.6,0.71348891]
[1767326220393,0.69856785,127.65,127.61,2.75550936]
[1767326220598,2.7405883,127.65,127.61,0.71348891]
[1767326221038,0.69856785,127.65,127.61,0.71348891]
[1767326221333,2.7405883,127.65,127.61,0.71348891]
[1767326221700,0.69856785,127.65,127.61,0.71348891]
[1767326221900,0.69856785,127.67,127.62,0.71348891]
[1767326222132,2.7405883,127.66,127.62,0.71348891]
[1767326223237,0.69856785,127.66,127.63,0.71348891]
[1767326223550,2.7405883,127.66,127.63,0.71348891]
[1767326224726,2.04202045,127.66,127.63,0.71348891]
[1767326225124,2.7405883,127.66,127.63,0.71348891]
[1767326226729,0.69856785,127.66,127.63,0.71348891]
[1767326226920,2.7405883,127.66,127.63,0.71348891]
[1767326227231,0.69856785,127.66,127.63,0.71348891]
[1767326227433,2.7405883,127.66,127.63,0.71348891]
[1767326227815,0.69856785,127.66,127.63,0.71348891]
[1767326228023,2.04202045,127.67,127.63,0.71348891]
[1767326228418,2.7405883,127.67,127.63,0.71348891]
[1767326229031,0.69856785,127.66,127.63,0.71348891]
[1767326229229,2.7405883,127.66,127.63,0.71348891]
[1767326233629,0.69856785,127.66,127.63,0.71348891]
[1767326234340,0.69856785,127.68,127.64,0.71348891]
[1767326234649,2.7405883,127.67,127.64,0.71348891]
[1767326234949,0.69856785,127.66,127.63,0.71348891]
[1767326235237,0.63856785,127.66,127.63,0.71348891]
[1767326236041,2.6805883,127.66,127.63,0.71348891]
[1767326239918,0.63856785,127.66,127.63,0.71348891]
[1767326243653,2.76455725,127.65,127.62,0.68030392]
[1767326244342,0.7225368,127.65,127.62,0.68030392]
[1767326247355,0.67990788,127.66,127.62,0.68030392]
[1767326248453,2.72192833,127.66,127.62,0.68030392]
[1767326249557,2.04202045,127.66,127.6,7.83674562]
[1767326249745,0.67990788,127.61,127.57,0.693628]
[1767326250058,2.72192833,127.61,127.57,0.693628]
[1767326251642,0.67990788,127.61,127.57,0.693628]
[1767326251842,2.72192833,127.62,127.57,0.693628]
[1767326252947,0.67990788,127.61,127.57,0.693628]
[1767326253452,2.72192833,127.61,127.57,0.693628]
[1767326255257,2.72192833,127.61,127.57,61.2]
[1767326255555,2.04202045,127.61,127.58,0.693628]
[1767326256137,2.72192833,127.62,127.58,0.693628]
[1767326258234,2.04202045,127.61,127.58,0.693628]
[1767326258434,2.72192833,127.61,127.58,0.693628]
[1767326258734,2.72192833,127.6,127.57,61.893628]
[1767326258929,2.72192833,127.6,127.57,0.693628]
[1767326259140,2.04202045,127.6,127.56,61.2]
[1767326259458,2.04202045,127.59,127.56,61.893628]
[1767326260040,2.04202045,127.59,127.56,61.2]
[1767326260239,0.64990788,127.6,127.57,0.693628]
[1767326260561,2.69192833,127.6,127.57,0.693628]
[1767326261157,2.04202045,127.61,127.57,0.693628]
[1767326262247,0.67990788,127.61,127.57,0.693628]
[1767326262557,2.72192833,127.61,127.57,0.693628]
[1767326262956,2.04202045,127.6,127.57,0.693628]
[1767326264346,0.67990788,127.61,127.57,0.693628]
[1767326264552,2.04202045,127.6,127.57,0.693628]
[1767326265156,2.04202045,127.59,127.57,0.693628]
[1767326265743,2.72192833,127.6,127.57,0.693628]
[1767326267458,2.04202045,127.59,127.57,0.693628]
[1767326267660,2.72192833,127.6,127.57,0.693628]
[1767326268060,2.04202045,127.59,127.57,0.693628]
[1767326269757,2.04202045,127.59,127.56,61.2]
[1767326269959,2.72192833,127.58,127.55,0.893628]
[1767326270560,3.8708224,127.58,127.55,0.893628]
[1767326270862,0.67990788,127.58,127.55,0.893628]
[1767326271077,3.8708224,127.58,127.55,0.893628]
[1767326272156,0.67990788,127.58,127.55,0.893628]
[1767326272363,3.8708224,127.58,127.55,0.893628]
[1767326273664,3.85000135,127.59,127.56,0.72007578]
[1767326274044,3.19091452,127.58,127.56,0.72007578]
[1767326276350,3.85000135,127.58,127.56,0.72007578]
[1767326277276,0.65908683,127.6,127.56,0.72007578]
[1767326277471,3.19091452,127.58,127.56,0.72007578]
[1767326279747,3.16091452,127.58,127.56,0.72007578]
[1767326280370,3.82000135,127.58,127.55,0.2]
[1767326280568,3.82000135,127.58,127.56,0.72007578]
[1767326281066,0.65908683,127.58,127.56,0.72007578]
[1767326281270,3.85000135,127.58,127.56,0.72007578]
[1767326281657,0.65908683,127.57,127.55,0.2]
[1767326281863,3.85000135,127.57,127.55,0.2]
[1767326282261,3.19091452,127.56,127.54,0.72007578]
[1767326282445,3.19091452,127.57,127.54,0.72007578]
[1767326282646,3.85000135,127.57,127.54,0.72007578]
[1767326283346,3.19091452,127.57,127.54,0.72007578]
[1767326284751,3.85000135,127.57,127.54,0.72007578]
[1767326285975,3.85000135,127.55,127.53,0.2]
[1767326286269,3.85000135,127.54,127.53,0.2]
[1767326288152,3.85000135,127.54,127.51,0.92007578]
[1767326289850,3.19091452,127.53,127.51,0.92007578]
[1767326290251,3.85000135,127.52,127.5,0.2]
[1767326290461,0.65908683,127.53,127.5,0.92007578]
[1767326290864,3.85000135,127.53,127.5,0.92007578]
[1767326291354,3.19091452,127.52,127.5,0.92007578]
[1767326292150,0.65908683,127.51,127.49,0.2]
[1767326292350,0.65908683,127.51,127.48,0.2]
[1767326292351,0.65908683,127.51,127.48,0.92007578]
[1767326292967,3.19091452,127.5,127.48,0.92007578]
[1767326294369,0.65908683,127.5,127.47,15.92797067]
[1767326294549,3.8159019,127.49,127.47,15.92797067]
[1767326294958,3.19091452,127.48,127.47,15.30298329]
[1767326295568,3.19091452,127.48,127.46,0.2]
[1767326296775,3.16091452,127.48,127.46,0.2]
[1767326297366,7.84190715,127.52,127.47,0.72007578]
[1767326297556,3.19091452,127.51,127.47,0.72007578]
[1767326297756,7.84129224,127.53,127.47,0.72007578]
[1767326297966,7.84129224,127.53,127.47,3.19091452]
[1767326297967,3.19091452,127.51,127.47,3.19091452]
[1767326298165,3.19091452,127.51,127.48,0.72007578]
[1767326300662,3.19091452,127.5,127.48,0.72007578]
[1767326300862,7.84196591,127.52,127.48,0.72007578]
[1767326301078,3.19091452,127.51,127.48,0.72007578]
[1767326301377,7.84196591,127.52,127.46,0.92007578]
[1767326301578,3.19091452,127.49,127.46,0.92007578]
[1767326302861,3.19091452,127.49,127.46,0.2]
[1767326303060,3.19091452,127.49,127.46,0.92007578]
[1767326303799,27.44452285,127.53,127.46,0.92007578]
[1767326303997,3.19091452,127.49,127.46,0.92007578]
[1767326305065,3.19091452,127.49,127.47,0.67884759]
[1767326306666,3.19091452,127.5,127.47,0.67884759]
[1767326307090,27.44452285,127.53,127.47,0.67884759]
[1767326307387,3.19091452,127.5,127.47,0.67884759]
[1767326307690,27.44452285,127.53,127.47,0.67884759]
[1767326307993,7.84261466,127.51,127.47,0.67884759]
[1767326308489,3.19091452,127.5,127.47,0.67884759]
[1767326309082,3.19091452,127.49,127.47,0.67884759]
[1767326312192,3.19091452,127.5,127.47,0.67884759]
[1767326312691,7.84207389,127.52,127.47,0.67884759]
[1767326312863,3.19091452,127.5,127.47,0.67884759]
[1767326315096,3.19091452,127.49,127.47,0.67884759]
[1767326315596,3.19091452,127.49,127.46,0.87884759]
[1767326316794,3.19091452,127.49,127.47,0.67884759]
[1767326318992,3.19091452,127.48,127.46,0.2]
[1767326319195,3.19091452,127.47,127.46,0.2]
[1767326320600,3.19091452,127.47,127.45,0.67884759]
[1767326321595,7.84376767,127.49,127.45,0.67884759]
[1767326321894,3.19091452,127.46,127.43,0.2]
[1767326322197,3.19091452,127.45,127.43,0.2]
[1767326324187,3.19091452,127.45,127.43,0.87884759]
[1767326324791,0.66136868,127.46,127.43,0.87884759]
[1767326324995,3.19091452,127.45,127.43,0.87884759]
[1767326325999,0.66136868,127.45,127.42,0.2]
[1767326326185,3.19091452,127.43,127.42,0.87884759]
[1767326326879,3.19091452,127.43,127.42,0.2]
[1767326327598,3.19091452,127.47,127.43,0.67884759]
[1767326327807,0.66136868,127.5,127.45,0.67884759]
[1767326327983,33.94652056,127.51,127.45,0.67884759]
[1767326328184,3.8522832,127.49,127.45,0.67884759]
[1767326328498,3.8522832,127.48,127.45,0.67884759]
[1767326328675,0.66136868,127.48,127.45,0.67884759]
[1767326328874,3.8522832,127.48,127.45,0.67884759]
[1767326329402,0.66136868,127.48,127.45,0.67884759]
[1767326329694,3.8522832,127.48,127.45,0.67884759]
[1767326330402,3.19091452,127.47,127.45,0.67884759]
[1767326330983,3.8522832,127.48,127.45,0.67884759]
[1767326331697,3.19091452,127.47,127.45,0.67884759]
[1767326331994,3.19091452,127.47,127.42,25.57882378]
[1767326331995,3.8522832,127.46,127.42,0.87884759]
[1767326332201,3.19091452,127.44,127.42,0.87884759]
[1767326332502,2.04659187,127.44,127.42,0.87884759]
[1767326332882,2.70796055,127.45,127.42,0.87884759]
[1767326334214,0.66136868,127.45,127.42,0.87884759]
[1767326334419,2.04659187,127.44,127.42,0.87884759]
[1767326334914,0.66136868,127.45,127.42,0.87884759]
[1767326335096,2.04659187,127.44,127.42,0.87884759]
[1767326336188,2.04659187,127.44,127.42,0.90282129]
[1767326336889,2.04659187,127.44,127.42,0.2]
[1767326337299,2.04659187,127.44,127.42,0.90282129]
[1767326337499,0.67884759,127.45,127.42,0.90282129]
[1767326337810,2.04659187,127.44,127.42,0.90282129]
[1767326338014,0.67884759,127.45,127.42,0.90282129]
[1767326338191,2.04659187,127.44,127.42,0.90282129]
[1767326338515,0.67884759,127.45,127.42,0.90282129]
[1767326338816,2.04659187,127.44,127.42,0.90282129]
[1767326339011,0.67884759,127.45,127.42,0.90282129]
[1767326339201,2.04659187,127.44,127.42,0.90282129]
[1767326341898,2.72543946,127.45,127.42,0.90282129]
[1767326342800,2.04659187,127.45,127.43,0.70282129]
[1767326343326,0.67884759,127.48,127.43,0.70282129]
[1767326343637,2.04659187,127.47,127.43,0.70282129]
[1767326344497,2.72543946,127.47,127.43,0.70282129]
[1767326345319,2.72543946,127.48,127.44,0.70282129]
[1767326346517,2.72543946,127.49,127.45,0.70282129]
[1767326346933,0.67884759,127.49,127.45,0.70282129]
[1767326347296,2.72543946,127.49,127.45,0.70282129]
[1767326348231,0.67884759,127.49,127.45,0.70282129]
[1767326348406,2.72543946,127.49,127.45,0.70282129]
[1767326351928,2.04659187,127.47,127.45,0.70282129]
[1767326352128,2.72543946,127.48,127.45,0.70282129]
[1767326352625,22.18314015,127.5,127.45,0.70282129]
[1767326352626,2.72543946,127.49,127.45,0.70282129]
[1767326355717,0.67884759,127.49,127.45,0.70282129]
[1767326355926,2.72543946,127.49,127.45,0.70282129]